[Event "Titled Tuesday Blitz May 31 Late 2022"]
[White "Miszler, Levente"]
[Black "Stanisz, Patryk"]
[WhiteFideId "763276"]
[BlackFideId "1123106"]
[WhiteElo "1966"]
[BlackElo "1833"]
[Result "1-0"]
[Round "09"]
[TimeControl "180+1"]
[Date "2022.06.01"]
[WhiteClock "0:00:51"]
[BlackClock "0:00:04"]

1. Nf3 {[%clk 0:03:00]}  d5 {[%clk 0:02:59]} 2. e3 {[%clk 0:02:57]}  Nf6 {[%clk 0:02:58]} 3. c4 {[%clk 0:02:58]}  c6 {[%clk 0:02:57]} 4. Nc3 {[%clk 0:02:58]}  e6 {[%clk 0:02:58]} 5. b3 {[%clk 0:02:56]}  Nbd7 {[%clk 0:02:57]} 6. Bb2 {[%clk 0:02:57]}  Be7 {[%clk 0:02:58]} 7. Be2 {[%clk 0:02:56]}  O-O {[%clk 0:02:58]} 8. O-O {[%clk 0:02:56]}  b6 {[%clk 0:02:59]} 9. d3 {[%clk 0:02:56]}  Bb7 {[%clk 0:02:59]} 10. Qc2 {[%clk 0:02:57]}  Re8 {[%clk 0:02:57]} 11. e4 {[%clk 0:02:56]}  Nf8 {[%clk 0:02:52]} 12. d4 {[%clk 0:02:50]}  dxe4 {[%clk 0:02:45]} 13. Nxe4 {[%clk 0:02:50]}  c5 {[%clk 0:02:45]} 14. Nxf6+ {[%clk 0:02:46]}  Bxf6 {[%clk 0:02:46]} 15. Rad1 {[%clk 0:02:44]}  cxd4 {[%clk 0:02:43]} 16. Nxd4 {[%clk 0:02:36]}  Qe7 {[%clk 0:02:29]} 17. Bf3 {[%clk 0:02:34]}  Bxf3 {[%clk 0:02:27]} 18. Nxf3 {[%clk 0:02:35]}  Red8 {[%clk 0:02:25]} 19. Bxf6 {[%clk 0:02:32]}  Qxf6 {[%clk 0:02:26]} 20. Qe4 {[%clk 0:02:32]}  Ng6 {[%clk 0:02:16]} 21. Qb7 {[%clk 0:02:28]}  Qe7 {[%clk 0:02:10]} 22. Qxe7 {[%clk 0:02:07]}  Nxe7 {[%clk 0:02:09]} 23. Nd4 {[%clk 0:02:03]}  h6 {[%clk 0:01:59]} 24. f3 {[%clk 0:01:54]}  Kf8 {[%clk 0:01:55]} 25. Kf2 {[%clk 0:01:52]}  Ke8 {[%clk 0:01:55]} 26. Ke3 {[%clk 0:01:52]}  Rd7 {[%clk 0:01:37]} 27. Rd3 {[%clk 0:01:50]}  Rad8 {[%clk 0:01:29]} 28. Rfd1 {[%clk 0:01:50]}  Rxd4 {[%clk 0:00:27]} 29. Rxd4 {[%clk 0:01:49]}  Nf5+ {[%clk 0:00:28]} 30. Ke4 {[%clk 0:01:50]}  Nxd4 {[%clk 0:00:19]} 31. Rxd4 {[%clk 0:01:50]}  Rxd4+ {[%clk 0:00:19]} 32. Kxd4 {[%clk 0:01:51]}  Kd7 {[%clk 0:00:20]} 33. c5 {[%clk 0:01:48]}  Kc6 {[%clk 0:00:09]} 34. cxb6 {[%clk 0:01:46]}  axb6 {[%clk 0:00:08]} 35. a4 {[%clk 0:01:45]}  f6 {[%clk 0:00:05]} 36. b4 {[%clk 0:01:44]}  Kd6 {[%clk 0:00:06]} 37. f4 {[%clk 0:01:42]}  g6 {[%clk 0:00:05]} 38. g4 {[%clk 0:01:38]}  Kc6 {[%clk 0:00:05]} 39. h4 {[%clk 0:01:34]}  Kd6 {[%clk 0:00:05]} 40. Ke3 {[%clk 0:01:10]}  Kd5 {[%clk 0:00:04]} 41. Kd3 {[%clk 0:01:10]}  Kc6 {[%clk 0:00:03]} 42. Kc4 {[%clk 0:01:04]}  b5+ {[%clk 0:00:03]} 43. axb5+ {[%clk 0:01:01]}  Kb6 {[%clk 0:00:04]} 44. h5 {[%clk 0:01:01]}  gxh5 {[%clk 0:00:03]} 45. gxh5 {[%clk 0:01:02]}  f5 {[%clk 0:00:02]} 46. Kd4 {[%clk 0:00:59]}  Kxb5 {[%clk 0:00:02]} 47. Ke5 {[%clk 0:01:00]}  Kxb4 {[%clk 0:00:02]} 48. Kxe6 {[%clk 0:01:01]}  Kc5 {[%clk 0:00:03]} 49. Kxf5 {[%clk 0:01:01]}  Kd6 {[%clk 0:00:03]} 50. Kg6 {[%clk 0:01:01]}  Ke7 {[%clk 0:00:03]} 51. f5 {[%clk 0:01:00]}  Kf8 {[%clk 0:00:02]} 52. Kxh6 {[%clk 0:00:59]}  Kf7 {[%clk 0:00:03]} 53. Kg5 {[%clk 0:00:59]}  Kg7 {[%clk 0:00:04]} 54. f6+ {[%clk 0:00:58]}  Kh7 {[%clk 0:00:04]} 55. Kf5 {[%clk 0:00:58]}  Kg8 {[%clk 0:00:04]} 56. Kg6 {[%clk 0:00:57]}  Kh8 {[%clk 0:00:03]} 57. Kf7 {[%clk 0:00:55]}  Kh7 {[%clk 0:00:03]} 58. Ke8 {[%clk 0:00:55]}  Kh8 {[%clk 0:00:02]} 59. f7 {[%clk 0:00:54]}  Kh7 {[%clk 0:00:03]} 60. h6 {[%clk 0:00:52]}  Kg6 {[%clk 0:00:03]} 61. f8=Q {[%clk 0:00:51]}  Kh7 {[%clk 0:00:04]} 62. Qg7# {[%clk 0:00:51]} 1-0


[Site "https://www.chess.com"]

[Event "Titled Tuesday Blitz May 31 Late 2022"]
[White "Moroni, Luca Jr"]
[Black "Janaszak, Dawid"]
[WhiteFideId "865834"]
[BlackFideId "1119206"]
[WhiteElo "2573"]
[BlackElo "2199"]
[Result "1-0"]
[Round "09"]
[TimeControl "180+1"]
[Date "2022.05.31"]
[WhiteClock "0:00:13"]
[BlackClock "0:00:05"]

1. d4 {[%clk 0:03:00]}  Nf6 {[%clk 0:02:59]} 2. Bf4 {[%clk 0:03:00]}  d6 {[%clk 0:02:57]} 3. e3 {[%clk 0:02:59]}  g6 {[%clk 0:02:57]} 4. Nf3 {[%clk 0:02:59]}  c5 {[%clk 0:02:54]} 5. c3 {[%clk 0:02:53]}  Qb6 {[%clk 0:02:51]} 6. Qb3 {[%clk 0:02:51]}  Be6 {[%clk 0:02:49]} 7. Qxb6 {[%clk 0:02:42]}  axb6 {[%clk 0:02:49]} 8. a3 {[%clk 0:02:40]}  Bd7 {[%clk 0:02:46]} 9. Nbd2 {[%clk 0:02:38]}  Bc6 {[%clk 0:02:45]} 10. h3 {[%clk 0:02:30]}  Nbd7 {[%clk 0:02:44]} 11. Bd3 {[%clk 0:02:29]}  Bg7 {[%clk 0:02:36]} 12. e4 {[%clk 0:02:26]}  cxd4 {[%clk 0:02:23]} 13. cxd4 {[%clk 0:02:24]}  e5 {[%clk 0:01:46]} 14. dxe5 {[%clk 0:02:00]}  Nh5 {[%clk 0:01:46]} 15. Be3 {[%clk 0:01:57]}  Nxe5 {[%clk 0:01:39]} 16. Nxe5 {[%clk 0:01:56]}  Bxe5 {[%clk 0:01:38]} 17. Nc4 {[%clk 0:01:53]}  Nf4 {[%clk 0:01:18]} 18. Bxf4 {[%clk 0:01:22]}  Bxf4 {[%clk 0:01:18]} 19. Nxb6 {[%clk 0:01:22]}  Rd8 {[%clk 0:01:11]} 20. O-O {[%clk 0:01:20]}  O-O {[%clk 0:01:01]} 21. Rfd1 {[%clk 0:01:18]}  Rfe8 {[%clk 0:01:00]} 22. b4 {[%clk 0:00:52]}  Bxe4 {[%clk 0:00:50]} 23. Bxe4 {[%clk 0:00:50]}  Rxe4 {[%clk 0:00:51]} 24. Nd5 {[%clk 0:00:50]}  Be5 {[%clk 0:00:43]} 25. Rac1 {[%clk 0:00:50]}  Re2 {[%clk 0:00:41]} 26. Rc7 {[%clk 0:00:44]}  Ra8 {[%clk 0:00:39]} 27. f4 {[%clk 0:00:30]}  Bg7 {[%clk 0:00:30]} 28. Rd3 {[%clk 0:00:28]}  b5 {[%clk 0:00:18]} 29. Rb7 {[%clk 0:00:27]}  Rae8 {[%clk 0:00:12]} 30. Rxb5 {[%clk 0:00:21]}  Ra2 {[%clk 0:00:13]} 31. Ra5 {[%clk 0:00:17]}  Ree2 {[%clk 0:00:11]} 32. Ra8+ {[%clk 0:00:16]}  Bf8 {[%clk 0:00:12]} 33. Rg3 {[%clk 0:00:16]}  Kg7 {[%clk 0:00:12]} 34. f5 {[%clk 0:00:16]}  h5 {[%clk 0:00:11]} 35. f6+ {[%clk 0:00:16]}  Kh6 {[%clk 0:00:05]} 36. Rxf8 {[%clk 0:00:16]}  Kh7 {[%clk 0:00:04]} 37. Rxf7+ {[%clk 0:00:16]}  Kh6 {[%clk 0:00:05]} 38. Rg7 {[%clk 0:00:16]}  h4 {[%clk 0:00:05]} 39. R3xg6+ {[%clk 0:00:13]} 1-0


[Site "https://www.chess.com"]

[Event "Titled Tuesday Blitz May 31 Late 2022"]
[White "Ozsakallioglu, Okan"]
[Black "Daeschler, Florian"]
[WhiteFideId "6367011"]
[BlackFideId "20678193"]
[WhiteElo "2003"]
[BlackElo "2195"]
[Result "1-0"]
[Round "09"]
[TimeControl "180+1"]
[Date "2022.06.01"]
[WhiteClock "0:01:16"]
[BlackClock "0:00:02"]

1. c4 {[%clk 0:03:00]}  Nf6 {[%clk 0:03:00]} 2. Nf3 {[%clk 0:03:00]}  c5 {[%clk 0:03:00]} 3. Nc3 {[%clk 0:03:00]}  g6 {[%clk 0:03:00]} 4. e3 {[%clk 0:03:01]}  Bg7 {[%clk 0:03:00]} 5. d4 {[%clk 0:03:01]}  cxd4 {[%clk 0:03:00]} 6. exd4 {[%clk 0:03:02]}  O-O {[%clk 0:02:59]} 7. d5 {[%clk 0:03:01]}  e5 {[%clk 0:03:00]} 8. dxe6 {[%clk 0:03:01]}  fxe6 {[%clk 0:02:53]} 9. Be2 {[%clk 0:02:59]}  d5 {[%clk 0:02:52]} 10. O-O {[%clk 0:02:59]}  Nc6 {[%clk 0:02:52]} 11. Bg5 {[%clk 0:02:59]}  d4 {[%clk 0:02:32]} 12. Ne4 {[%clk 0:02:59]}  e5 {[%clk 0:02:33]} 13. c5 {[%clk 0:02:55]}  Qd5 {[%clk 0:02:21]} 14. Nd6 {[%clk 0:02:50]}  Qxc5 {[%clk 0:01:50]} 15. Bc4+ {[%clk 0:02:50]}  Nd5 {[%clk 0:01:41]} 16. Nxc8 {[%clk 0:02:41]}  Qxc4 {[%clk 0:01:29]} 17. Rc1 {[%clk 0:02:41]}  Qb4 {[%clk 0:01:12]} 18. a3 {[%clk 0:02:37]}  Qxb2 {[%clk 0:01:10]} 19. Nd6 {[%clk 0:02:37]}  h6 {[%clk 0:00:58]} 20. Bd2 {[%clk 0:02:31]}  Qxa3 {[%clk 0:00:51]} 21. Nxb7 {[%clk 0:02:31]}  Rac8 {[%clk 0:00:50]} 22. Qe2 {[%clk 0:02:24]}  Qb2 {[%clk 0:00:31]} 23. Nd6 {[%clk 0:02:15]}  Rc7 {[%clk 0:00:25]} 24. Qe4 {[%clk 0:02:05]}  Nf6 {[%clk 0:00:19]} 25. Qxg6 {[%clk 0:02:01]}  e4 {[%clk 0:00:12]} 26. Nf5 {[%clk 0:01:53]}  exf3 {[%clk 0:00:08]} 27. Rxc6 {[%clk 0:01:53]}  Rcf7 {[%clk 0:00:08]} 28. Rxf6 {[%clk 0:01:43]}  Qxd2 {[%clk 0:00:06]} 29. h4 {[%clk 0:01:27]}  fxg2 {[%clk 0:00:06]} 30. Kxg2 {[%clk 0:01:26]}  h5 {[%clk 0:00:04]} 31. Rg1 {[%clk 0:01:24]}  Kh8 {[%clk 0:00:03]} 32. Qxh5+ {[%clk 0:01:23]}  Kg8 {[%clk 0:00:03]} 33. Nh6+ {[%clk 0:01:21]}  Bxh6 {[%clk 0:00:02]} 34. Kh1+ {[%clk 0:01:16]} 1-0


[Site "https://www.chess.com"]

[Event "Titled Tuesday Blitz May 31 Late 2022"]
[White "Perez Torres, Nabi Isaias"]
[Black "Suich, Peter D"]
[WhiteFideId "5120373"]
[BlackFideId "2050366"]
[WhiteElo "1755"]
[BlackElo "2434"]
[Result "0-1"]
[Round "09"]
[TimeControl "180+1"]
[Date "2022.06.01"]
[WhiteClock "0:00:13"]
[BlackClock "0:00:11"]

1. d4 {[%clk 0:03:00]}  d5 {[%clk 0:03:00]} 2. c4 {[%clk 0:03:00]}  c6 {[%clk 0:03:00]} 3. Nc3 {[%clk 0:03:01]}  Nf6 {[%clk 0:03:00]} 4. e3 {[%clk 0:03:01]}  Bf5 {[%clk 0:03:00]} 5. cxd5 {[%clk 0:03:01]}  cxd5 {[%clk 0:03:01]} 6. Qb3 {[%clk 0:03:01]}  Nc6 {[%clk 0:03:02]} 7. Qxb7 {[%clk 0:02:59]}  Bd7 {[%clk 0:03:02]} 8. Qb3 {[%clk 0:02:53]}  Rb8 {[%clk 0:03:03]} 9. Qd1 {[%clk 0:02:51]}  e5 {[%clk 0:03:03]} 10. dxe5 {[%clk 0:02:50]}  Nxe5 {[%clk 0:03:04]} 11. Nf3 {[%clk 0:02:50]}  Bd6 {[%clk 0:03:04]} 12. Be2 {[%clk 0:02:48]}  O-O {[%clk 0:03:03]} 13. O-O {[%clk 0:02:48]}  Qc7 {[%clk 0:03:02]} 14. h3 {[%clk 0:02:38]}  Rfd8 {[%clk 0:03:01]} 15. Nd4 {[%clk 0:02:27]}  Nc4 {[%clk 0:03:01]} 16. Bf3 {[%clk 0:02:05]}  Nxb2 {[%clk 0:02:31]} 17. Bxb2 {[%clk 0:02:02]}  Rxb2 {[%clk 0:02:32]} 18. Rc1 {[%clk 0:02:02]}  Qa5 {[%clk 0:02:28]} 19. Nb3 {[%clk 0:01:57]}  Qb6 {[%clk 0:01:58]} 20. Qd3 {[%clk 0:01:32]}  Be5 {[%clk 0:01:48]} 21. Nxd5 {[%clk 0:01:20]}  Nxd5 {[%clk 0:01:35]} 22. Qxd5 {[%clk 0:01:19]}  Bf6 {[%clk 0:01:17]} 23. Rfd1 {[%clk 0:00:53]}  Bxh3 {[%clk 0:00:33]} 24. Qh5 {[%clk 0:00:20]}  Be6 {[%clk 0:00:31]} 25. Na5 {[%clk 0:00:20]}  g6 {[%clk 0:00:30]} 26. Qh6 {[%clk 0:00:19]}  Qxa5 {[%clk 0:00:29]} 27. Qf4 {[%clk 0:00:18]}  Bg7 {[%clk 0:00:24]} 28. Rxd8+ {[%clk 0:00:16]}  Qxd8 {[%clk 0:00:25]} 29. Qa4 {[%clk 0:00:15]}  Rd2 {[%clk 0:00:24]} 30. Rf1 {[%clk 0:00:15]}  Bd7 {[%clk 0:00:23]} 31. Qxa7 {[%clk 0:00:15]}  Bb5 {[%clk 0:00:22]} 32. Rb1 {[%clk 0:00:14]}  Bc4 {[%clk 0:00:22]} 33. a4 {[%clk 0:00:14]}  Be5 {[%clk 0:00:21]} 34. Qc5 {[%clk 0:00:14]}  Qc7 {[%clk 0:00:10]} 35. Qxc7 {[%clk 0:00:12]}  Bxc7 {[%clk 0:00:11]} 36. Rc1 {[%clk 0:00:13]}  Ra2 {[%clk 0:00:10]} 37. Rxc4 {[%clk 0:00:13]}  Ra1+ {[%clk 0:00:11]} 0-1


[Site "https://www.chess.com"]

[Event "Titled Tuesday Blitz May 31 Late 2022"]
[White "Pinheiro, Iung Alicio de O."]
[Black "Goncalves, Ivan Mesquita V"]
[WhiteFideId "2104350"]
[BlackFideId "2114224"]
[WhiteElo "2283"]
[BlackElo "2299"]
[Result "0-1"]
[Round "09"]
[TimeControl "180+1"]
[Date "2022.05.31"]
[WhiteClock "0:00:12"]
[BlackClock "0:00:11"]

1. c4 {[%clk 0:02:59]}  e5 {[%clk 0:02:58]} 2. g3 {[%clk 0:02:58]}  Nf6 {[%clk 0:02:58]} 3. Bg2 {[%clk 0:02:58]}  Nc6 {[%clk 0:02:54]} 4. Nc3 {[%clk 0:02:57]}  Bc5 {[%clk 0:02:47]} 5. a3 {[%clk 0:02:56]}  a5 {[%clk 0:02:46]} 6. e3 {[%clk 0:02:56]}  O-O {[%clk 0:02:46]} 7. Nge2 {[%clk 0:02:56]}  d6 {[%clk 0:02:45]} 8. O-O {[%clk 0:02:53]}  Bg4 {[%clk 0:02:43]} 9. h3 {[%clk 0:02:40]}  Bh5 {[%clk 0:02:43]} 10. f4 {[%clk 0:02:35]}  exf4 {[%clk 0:02:37]} 11. g4 {[%clk 0:02:34]}  Bg6 {[%clk 0:02:36]} 12. Nxf4 {[%clk 0:02:34]}  Re8 {[%clk 0:02:28]} 13. b3 {[%clk 0:02:03]}  Nd7 {[%clk 0:01:59]} 14. Bb2 {[%clk 0:01:55]}  Ba7 {[%clk 0:01:47]} 15. Qf3 {[%clk 0:01:38]}  Nde5 {[%clk 0:01:44]} 16. Qg3 {[%clk 0:01:38]}  Nd3 {[%clk 0:01:35]} 17. Nxd3 {[%clk 0:01:33]}  Bxd3 {[%clk 0:01:36]} 18. Rf2 {[%clk 0:01:27]}  Rb8 {[%clk 0:01:12]} 19. Nd5 {[%clk 0:01:00]}  Ne5 {[%clk 0:00:55]} 20. g5 {[%clk 0:00:48]}  Bg6 {[%clk 0:00:45]} 21. h4 {[%clk 0:00:43]}  Nd3 {[%clk 0:00:43]} 22. Bf6 {[%clk 0:00:33]}  gxf6 {[%clk 0:00:29]} 23. Nxf6+ {[%clk 0:00:30]}  Kg7 {[%clk 0:00:20]} 24. h5 {[%clk 0:00:25]}  Nxf2 {[%clk 0:00:19]} 25. Qxf2 {[%clk 0:00:23]}  Re5 {[%clk 0:00:18]} 26. hxg6 {[%clk 0:00:19]}  hxg6 {[%clk 0:00:16]} 27. Ne4 {[%clk 0:00:18]}  Qe7 {[%clk 0:00:14]} 28. Rf1 {[%clk 0:00:18]}  Rh8 {[%clk 0:00:13]} 29. d4 {[%clk 0:00:15]}  Rf5 {[%clk 0:00:11]} 30. Qg3 {[%clk 0:00:14]}  Rxf1+ {[%clk 0:00:12]} 31. Kxf1 {[%clk 0:00:14]}  Qe6 {[%clk 0:00:11]} 32. Qf4 {[%clk 0:00:13]}  Qf5 {[%clk 0:00:11]} 33. Qxf5 {[%clk 0:00:13]}  gxf5 {[%clk 0:00:12]} 34. Ng3 {[%clk 0:00:13]}  Kg6 {[%clk 0:00:13]} 35. Kf2 {[%clk 0:00:13]}  Kxg5 {[%clk 0:00:13]} 36. Bxb7 {[%clk 0:00:13]}  Rb8 {[%clk 0:00:13]} 37. Bd5 {[%clk 0:00:14]}  Rxb3 {[%clk 0:00:13]} 38. Ne2 {[%clk 0:00:14]}  Rxa3 {[%clk 0:00:13]} 39. Kf3 {[%clk 0:00:15]}  Ra1 {[%clk 0:00:13]} 40. Nc3 {[%clk 0:00:14]}  a4 {[%clk 0:00:13]} 41. Nb5 {[%clk 0:00:14]}  Bb6 {[%clk 0:00:13]} 42. Bxf7 {[%clk 0:00:12]}  a3 {[%clk 0:00:12]} 43. c5 {[%clk 0:00:12]}  dxc5 {[%clk 0:00:13]} 44. d5 {[%clk 0:00:12]}  Ba5 {[%clk 0:00:12]} 45. d6 {[%clk 0:00:12]}  cxd6 {[%clk 0:00:12]} 46. Nxd6 {[%clk 0:00:13]}  a2 {[%clk 0:00:12]} 47. Bxa2 {[%clk 0:00:13]}  Rxa2 {[%clk 0:00:12]} 48. Nc4 {[%clk 0:00:14]}  Bb4 {[%clk 0:00:12]} 49. Ne5 {[%clk 0:00:13]}  Kf6 {[%clk 0:00:11]} 50. Nd3 {[%clk 0:00:12]}  Ra3 {[%clk 0:00:10]} 51. Nf4 {[%clk 0:00:12]}  Bd2 {[%clk 0:00:10]} 52. Nd5+ {[%clk 0:00:10]}  Ke5 {[%clk 0:00:10]} 53. Nb6 {[%clk 0:00:09]}  Rxe3+ {[%clk 0:00:11]} 54. Kf2 {[%clk 0:00:09]}  Rc3 {[%clk 0:00:11]} 55. Ke2 {[%clk 0:00:08]}  Bg5 {[%clk 0:00:10]} 56. Na4 {[%clk 0:00:08]}  Kd4 {[%clk 0:00:09]} 57. Nxc3 {[%clk 0:00:07]}  Kxc3 {[%clk 0:00:10]} 58. Kd1 {[%clk 0:00:08]}  Kb2 {[%clk 0:00:10]} 59. Ke2 {[%clk 0:00:08]}  c4 {[%clk 0:00:11]} 60. Kf3 {[%clk 0:00:08]}  Kc3 {[%clk 0:00:10]} 61. Ke2 {[%clk 0:00:09]}  Kd4 {[%clk 0:00:10]} 62. Kd1 {[%clk 0:00:10]}  c3 {[%clk 0:00:10]} 63. Kc2 {[%clk 0:00:10]}  Kc4 {[%clk 0:00:11]} 64. Kb1 {[%clk 0:00:11]}  Kb3 {[%clk 0:00:10]} 65. Ka1 {[%clk 0:00:11]}  Bf6 {[%clk 0:00:10]} 66. Kb1 {[%clk 0:00:11]}  c2+ {[%clk 0:00:10]} 67. Kc1 {[%clk 0:00:12]}  Bg5# {[%clk 0:00:11]} 0-1


[Site "https://www.chess.com"]

[Event "Titled Tuesday Blitz May 31 Late 2022"]
[White "Premnath, R."]
[Black "Kozin, Yuri"]
[WhiteFideId "5021928"]
[BlackFideId "4129920"]
[WhiteElo "2568"]
[BlackElo "2570"]
[Result "1-0"]
[Round "09"]
[TimeControl "180+1"]
[Date "2022.06.01"]
[WhiteClock "0:00:05"]
[BlackClock "0:00:02"]

1. d4 {[%clk 0:03:00]}  d5 {[%clk 0:02:58]} 2. c4 {[%clk 0:03:01]}  c6 {[%clk 0:02:57]} 3. Nc3 {[%clk 0:03:00]}  Nf6 {[%clk 0:02:58]} 4. Nf3 {[%clk 0:03:00]}  dxc4 {[%clk 0:02:58]} 5. a4 {[%clk 0:03:00]}  Bf5 {[%clk 0:02:58]} 6. e3 {[%clk 0:03:00]}  e6 {[%clk 0:02:58]} 7. Bxc4 {[%clk 0:03:00]}  Bb4 {[%clk 0:02:59]} 8. O-O {[%clk 0:02:59]}  Nbd7 {[%clk 0:02:59]} 9. Qe2 {[%clk 0:02:58]}  Bg6 {[%clk 0:02:58]} 10. Rd1 {[%clk 0:02:58]}  O-O {[%clk 0:02:57]} 11. Bd3 {[%clk 0:02:57]}  Bh5 {[%clk 0:02:57]} 12. e4 {[%clk 0:02:57]}  Be7 {[%clk 0:02:41]} 13. e5 {[%clk 0:02:56]}  Nd5 {[%clk 0:02:41]} 14. Nxd5 {[%clk 0:02:46]}  cxd5 {[%clk 0:02:38]} 15. Bd2 {[%clk 0:02:39]}  Rc8 {[%clk 0:02:36]} 16. Rdc1 {[%clk 0:02:40]}  Nb8 {[%clk 0:02:26]} 17. b4 {[%clk 0:02:33]}  Nc6 {[%clk 0:02:17]} 18. Qe3 {[%clk 0:01:58]}  Nxb4 {[%clk 0:01:46]} 19. Rxc8 {[%clk 0:01:36]}  Qxc8 {[%clk 0:01:43]} 20. Rc1 {[%clk 0:01:02]}  Qd8 {[%clk 0:01:35]} 21. Be2 {[%clk 0:00:56]}  Bg6 {[%clk 0:01:31]} 22. Qb3 {[%clk 0:00:54]}  a5 {[%clk 0:01:22]} 23. h4 {[%clk 0:00:45]}  Qb6 {[%clk 0:01:06]} 24. Rc3 {[%clk 0:00:28]}  Bh5 {[%clk 0:01:00]} 25. Be3 {[%clk 0:00:28]}  Bxf3 {[%clk 0:00:55]} 26. Bxf3 {[%clk 0:00:29]}  Bxh4 {[%clk 0:00:55]} 27. Rc5 {[%clk 0:00:27]}  Be7 {[%clk 0:00:54]} 28. Rb5 {[%clk 0:00:27]}  Qc7 {[%clk 0:00:51]} 29. g3 {[%clk 0:00:23]}  f6 {[%clk 0:00:43]} 30. exf6 {[%clk 0:00:18]}  Rxf6 {[%clk 0:00:39]} 31. Bg4 {[%clk 0:00:19]}  Bd6 {[%clk 0:00:31]} 32. Kg2 {[%clk 0:00:18]}  Qf7 {[%clk 0:00:23]} 33. Qc3 {[%clk 0:00:16]}  h5 {[%clk 0:00:20]} 34. Bh3 {[%clk 0:00:13]}  Nc6 {[%clk 0:00:18]} 35. Qb2 {[%clk 0:00:11]}  Bb4 {[%clk 0:00:14]} 36. Qe2 {[%clk 0:00:10]}  Qg6 {[%clk 0:00:10]} 37. Kh2 {[%clk 0:00:08]}  Rf7 {[%clk 0:00:07]} 38. Bf4 {[%clk 0:00:08]}  Nd8 {[%clk 0:00:03]} 39. Rb6 {[%clk 0:00:08]}  Rf6 {[%clk 0:00:02]} 40. Bc7 {[%clk 0:00:06]}  Qe8 {[%clk 0:00:01]} 41. Bxd8 {[%clk 0:00:06]}  Qxd8 {[%clk 0:00:02]} 42. Bxe6+ {[%clk 0:00:07]}  Kf8 {[%clk 0:00:01]} 43. Qb5 {[%clk 0:00:07]}  Qe7 {[%clk 0:00:01]} 44. Qd7 {[%clk 0:00:05]}  Rxf2+ {[%clk 0:00:01]} 45. Kh3 {[%clk 0:00:04]}  Qxd7 {[%clk 0:00:02]} 46. Bxd7 {[%clk 0:00:05]}  Rf6 {[%clk 0:00:02]} 47. Rxb7 {[%clk 0:00:05]}  Rf3 {[%clk 0:00:02]} 48. Kh4 {[%clk 0:00:04]}  Rd3 {[%clk 0:00:02]} 49. Kxh5 {[%clk 0:00:03]}  Rxd4 {[%clk 0:00:02]} 50. g4 {[%clk 0:00:04]}  Be7 {[%clk 0:00:02]} 51. Bf5 {[%clk 0:00:05]}  Bf6 {[%clk 0:00:02]} 52. Kg6 {[%clk 0:00:05]} 1-0


[Site "https://www.chess.com"]

[Event "Titled Tuesday Blitz May 31 Late 2022"]
[White "Proudian, Armen"]
[Black "Leiva, Gianmarco"]
[WhiteFideId "2130734"]
[BlackFideId "3804399"]
[WhiteElo "2380"]
[BlackElo "2323"]
[Result "1-0"]
[Round "09"]
[TimeControl "180+1"]
[Date "2022.05.31"]
[WhiteClock "0:00:21"]
[BlackClock "0:00:01"]

1. e4 {[%clk 0:03:00]}  c5 {[%clk 0:02:58]} 2. Nf3 {[%clk 0:03:00]}  d6 {[%clk 0:02:59]} 3. d4 {[%clk 0:03:01]}  cxd4 {[%clk 0:03:00]} 4. Nxd4 {[%clk 0:03:02]}  Nf6 {[%clk 0:03:00]} 5. Nc3 {[%clk 0:03:02]}  a6 {[%clk 0:03:01]} 6. Be3 {[%clk 0:03:03]}  e5 {[%clk 0:03:01]} 7. Nb3 {[%clk 0:03:04]}  Be6 {[%clk 0:03:02]} 8. Qd2 {[%clk 0:03:04]}  Be7 {[%clk 0:03:02]} 9. O-O-O {[%clk 0:03:05]}  Nbd7 {[%clk 0:03:02]} 10. f4 {[%clk 0:03:05]}  exf4 {[%clk 0:03:02]} 11. Bxf4 {[%clk 0:03:06]}  Ne5 {[%clk 0:03:03]} 12. Nd4 {[%clk 0:03:07]}  O-O {[%clk 0:03:03]} 13. Nf5 {[%clk 0:03:07]}  Ne8 {[%clk 0:02:48]} 14. Nd5 {[%clk 0:02:54]}  Bxd5 {[%clk 0:02:46]} 15. Qxd5 {[%clk 0:02:52]}  Bg5 {[%clk 0:02:45]} 16. Qd2 {[%clk 0:02:42]}  Bxf4 {[%clk 0:02:40]} 17. Qxf4 {[%clk 0:02:43]}  Qf6 {[%clk 0:02:23]} 18. g4 {[%clk 0:02:30]}  g6 {[%clk 0:01:19]} 19. g5 {[%clk 0:02:30]}  Qe6 {[%clk 0:01:18]} 20. Nh6+ {[%clk 0:02:30]}  Kh8 {[%clk 0:01:18]} 21. Kb1 {[%clk 0:02:30]}  Qe7 {[%clk 0:01:10]} 22. h4 {[%clk 0:02:24]}  Ng7 {[%clk 0:01:09]} 23. Be2 {[%clk 0:02:18]}  f6 {[%clk 0:01:06]} 24. Qe3 {[%clk 0:02:09]}  Rad8 {[%clk 0:00:50]} 25. h5 {[%clk 0:02:01]}  fxg5 {[%clk 0:00:49]} 26. hxg6 {[%clk 0:02:01]}  Nxg6 {[%clk 0:00:50]} 27. Bg4 {[%clk 0:01:49]}  Nh4 {[%clk 0:00:41]} 28. Rdg1 {[%clk 0:01:40]}  Qe5 {[%clk 0:00:39]} 29. Be2 {[%clk 0:01:37]}  Rf4 {[%clk 0:00:36]} 30. Qb6 {[%clk 0:01:18]}  Rdf8 {[%clk 0:00:26]} 31. Qxb7 {[%clk 0:01:15]}  Rxe4 {[%clk 0:00:24]} 32. Bd3 {[%clk 0:01:07]}  Ref4 {[%clk 0:00:17]} 33. Qxa6 {[%clk 0:01:02]}  Qe6 {[%clk 0:00:15]} 34. Qa5 {[%clk 0:00:41]}  Qxh6 {[%clk 0:00:15]} 35. Rxg5 {[%clk 0:00:41]}  Ng2 {[%clk 0:00:08]} 36. Rc1 {[%clk 0:00:36]}  Ne3 {[%clk 0:00:03]} 37. a3 {[%clk 0:00:33]}  Qf6 {[%clk 0:00:03]} 38. Rh1 {[%clk 0:00:32]}  h6 {[%clk 0:00:03]} 39. Rg6 {[%clk 0:00:31]}  Rh4 {[%clk 0:00:02]} 40. Rxf6 {[%clk 0:00:23]}  Rxh1+ {[%clk 0:00:02]} 41. Ka2 {[%clk 0:00:24]}  Rxf6 {[%clk 0:00:03]} 42. Qa8+ {[%clk 0:00:25]}  Ne8 {[%clk 0:00:04]} 43. Qxh1 {[%clk 0:00:25]}  Re6 {[%clk 0:00:01]} 44. Qh3 {[%clk 0:00:22]}  Re5 {[%clk 0:00:01]} 45. Qd7 {[%clk 0:00:22]}  Nf6 {[%clk 0:00:01]} 46. Qxd6 {[%clk 0:00:22]}  Nfg4 {[%clk 0:00:01]} 47. Qf8# {[%clk 0:00:21]} 1-0


[Site "https://www.chess.com"]